[Event "Titled Tuesday Blitz April 11 Early 2023"]
[White "Martic, Ivan"]
[Black "Averjanov, Alexey"]
[WhiteFideId "929301"]
[BlackFideId "14109867"]
[WhiteElo "2360"]
[BlackElo "2727"]
[Result "0-1"]
[Round "10"]
[TimeControl "180+2"]
[Date "2023.04.11"]
[WhiteClock "0:00:07"]
[BlackClock "0:00:13"]

1. d4 {[%clk 0:03:00]}  d5 {[%clk 0:02:59]} 2. c4 {[%clk 0:03:00]}  dxc4 {[%clk 0:02:59]} 3. e3 {[%clk 0:02:59]}  Nf6 {[%clk 0:03:00]} 4. Bxc4 {[%clk 0:02:59]}  e6 {[%clk 0:03:00]} 5. Nf3 {[%clk 0:02:59]}  a6 {[%clk 0:03:01]} 6. O-O {[%clk 0:02:57]}  b5 {[%clk 0:03:01]} 7. Bb3 {[%clk 0:02:56]}  Bb7 {[%clk 0:03:01]} 8. a4 {[%clk 0:02:55]}  b4 {[%clk 0:03:01]} 9. Nbd2 {[%clk 0:02:50]}  Nbd7 {[%clk 0:03:01]} 10. Nc4 {[%clk 0:02:45]}  c5 {[%clk 0:03:01]} 11. Qe2 {[%clk 0:02:43]}  Qc7 {[%clk 0:02:59]} 12. a5 {[%clk 0:02:39]}  Be7 {[%clk 0:02:59]} 13. Bd2 {[%clk 0:02:23]}  O-O {[%clk 0:02:59]} 14. Rfc1 {[%clk 0:02:22]}  Rfd8 {[%clk 0:02:56]} 15. Be1 {[%clk 0:02:17]}  Rac8 {[%clk 0:02:54]} 16. Nce5 {[%clk 0:02:14]}  Nxe5 {[%clk 0:02:44]} 17. Nxe5 {[%clk 0:02:10]}  Qb8 {[%clk 0:02:38]} 18. Nf3 {[%clk 0:01:52]}  Bxf3 {[%clk 0:02:27]} 19. Qxf3 {[%clk 0:01:45]}  cxd4 {[%clk 0:02:26]} 20. exd4 {[%clk 0:01:40]}  Rxd4 {[%clk 0:02:23]} 21. Qe2 {[%clk 0:01:31]}  Rxc1 {[%clk 0:02:10]} 22. Rxc1 {[%clk 0:01:32]}  Qb7 {[%clk 0:02:10]} 23. h3 {[%clk 0:01:14]}  h6 {[%clk 0:02:10]} 24. Bd2 {[%clk 0:01:04]}  Bd8 {[%clk 0:01:55]} 25. Be3 {[%clk 0:01:00]}  Rd7 {[%clk 0:01:47]} 26. Ba4 {[%clk 0:01:00]}  Rc7 {[%clk 0:01:43]} 27. Rd1 {[%clk 0:00:59]}  Be7 {[%clk 0:01:37]} 28. Bb6 {[%clk 0:00:58]}  Rc8 {[%clk 0:01:37]} 29. Bb3 {[%clk 0:00:55]}  Bc5 {[%clk 0:01:15]} 30. Rd8+ {[%clk 0:00:46]}  Rxd8 {[%clk 0:01:14]} 31. Bxd8 {[%clk 0:00:47]}  Nd5 {[%clk 0:00:59]} 32. Bc4 {[%clk 0:00:31]}  Qc8 {[%clk 0:00:40]} 33. Bh4 {[%clk 0:00:30]}  Qc7 {[%clk 0:00:33]} 34. Bxa6 {[%clk 0:00:24]}  Qxa5 {[%clk 0:00:33]} 35. Bc4 {[%clk 0:00:24]}  Qc7 {[%clk 0:00:30]} 36. Kh1 {[%clk 0:00:22]}  Qf4 {[%clk 0:00:26]} 37. Bg3 {[%clk 0:00:20]}  Qd4 {[%clk 0:00:25]} 38. Bb3 {[%clk 0:00:19]}  Nf4 {[%clk 0:00:24]} 39. Qf3 {[%clk 0:00:18]}  Nd3 {[%clk 0:00:22]} 40. Qa8+ {[%clk 0:00:16]}  Kh7 {[%clk 0:00:22]} 41. Bc2 {[%clk 0:00:17]}  f5 {[%clk 0:00:22]} 42. Qe8 {[%clk 0:00:12]}  Nxf2+ {[%clk 0:00:21]} 43. Kh2 {[%clk 0:00:09]}  Ne4 {[%clk 0:00:13]} 44. Qxe6 {[%clk 0:00:07]}  Qg1# {[%clk 0:00:13]} 0-1


[Site "https://www.chess.com"]

[Event "Titled Tuesday Blitz April 11 Early 2023"]
[White "Shukhman, Anna"]
[Black "Kosteniuk, Alexandra"]
[WhiteFideId "54180058"]
[BlackFideId "4128125"]
[WhiteElo "2125"]
[BlackElo "2453"]
[Result "1/2-1/2"]
[Round "10"]
[TimeControl "180+2"]
[Date "2023.04.11"]
[WhiteClock "0:00:16"]
[BlackClock "0:00:08"]

1. e4 {[%clk 0:03:00]}  e5 {[%clk 0:02:58]} 2. Nf3 {[%clk 0:03:00]}  Nf6 {[%clk 0:02:58]} 3. Nxe5 {[%clk 0:03:00]}  d6 {[%clk 0:02:58]} 4. Nf3 {[%clk 0:03:00]}  Nxe4 {[%clk 0:02:59]} 5. Bd3 {[%clk 0:03:00]}  Nf6 {[%clk 0:02:49]} 6. O-O {[%clk 0:02:58]}  Be7 {[%clk 0:02:49]} 7. Re1 {[%clk 0:02:58]}  O-O {[%clk 0:02:49]} 8. Bf1 {[%clk 0:02:58]}  c5 {[%clk 0:02:49]} 9. c3 {[%clk 0:02:57]}  b6 {[%clk 0:02:45]} 10. d4 {[%clk 0:02:56]}  Bb7 {[%clk 0:02:45]} 11. Bf4 {[%clk 0:02:55]}  Nbd7 {[%clk 0:02:43]} 12. Nbd2 {[%clk 0:02:54]}  Re8 {[%clk 0:02:42]} 13. Nc4 {[%clk 0:02:51]}  Nf8 {[%clk 0:02:39]} 14. dxc5 {[%clk 0:02:11]}  dxc5 {[%clk 0:02:40]} 15. Qc2 {[%clk 0:02:10]}  Ne6 {[%clk 0:02:22]} 16. Rad1 {[%clk 0:02:08]}  Qc8 {[%clk 0:02:22]} 17. Nd6 {[%clk 0:02:05]}  Bxd6 {[%clk 0:02:22]} 18. Bxd6 {[%clk 0:02:05]}  Bxf3 {[%clk 0:02:14]} 19. gxf3 {[%clk 0:02:06]}  Qc6 {[%clk 0:02:13]} 20. Bg2 {[%clk 0:02:04]}  Rad8 {[%clk 0:02:13]} 21. f4 {[%clk 0:01:57]}  Qc8 {[%clk 0:02:00]} 22. f5 {[%clk 0:01:55]}  Nf8 {[%clk 0:01:55]} 23. Be7 {[%clk 0:01:42]}  Rxd1 {[%clk 0:01:53]} 24. Qxd1 {[%clk 0:01:41]}  Qxf5 {[%clk 0:01:48]} 25. Bxf8 {[%clk 0:01:41]}  Rxe1+ {[%clk 0:01:40]} 26. Qxe1 {[%clk 0:01:40]}  Kxf8 {[%clk 0:01:40]} 27. Qd2 {[%clk 0:01:39]}  Ke7 {[%clk 0:01:31]} 28. Qe2+ {[%clk 0:01:36]}  Qe6 {[%clk 0:01:27]} 29. Qa6 {[%clk 0:01:35]}  Qd7 {[%clk 0:01:28]} 30. b4 {[%clk 0:01:29]}  cxb4 {[%clk 0:01:22]} 31. cxb4 {[%clk 0:01:28]}  h5 {[%clk 0:01:16]} 32. Qe2+ {[%clk 0:01:23]}  Kf8 {[%clk 0:01:14]} 33. b5 {[%clk 0:01:16]}  Qd4 {[%clk 0:01:10]} 34. Bc6 {[%clk 0:01:12]}  g6 {[%clk 0:01:08]} 35. h3 {[%clk 0:01:09]}  h4 {[%clk 0:01:00]} 36. Qf3 {[%clk 0:01:00]}  Qa1+ {[%clk 0:00:57]} 37. Kg2 {[%clk 0:00:59]}  Qe5 {[%clk 0:00:58]} 38. Qa3+ {[%clk 0:00:57]}  Kg7 {[%clk 0:00:56]} 39. Qxa7 {[%clk 0:00:55]}  Qd4 {[%clk 0:00:54]} 40. Qa3 {[%clk 0:00:48]}  Nh5 {[%clk 0:00:54]} 41. Qe3 {[%clk 0:00:42]}  Nf4+ {[%clk 0:00:54]} 42. Kf3 {[%clk 0:00:41]}  Qxe3+ {[%clk 0:00:46]} 43. fxe3 {[%clk 0:00:41]}  Nxh3 {[%clk 0:00:42]} 44. a4 {[%clk 0:00:41]}  Ng5+ {[%clk 0:00:29]} 45. Kg4 {[%clk 0:00:38]}  Ne6 {[%clk 0:00:29]} 46. a5 {[%clk 0:00:25]}  bxa5 {[%clk 0:00:29]} 47. b6 {[%clk 0:00:25]}  Nd8 {[%clk 0:00:20]} 48. Bd5 {[%clk 0:00:25]}  Kf6 {[%clk 0:00:19]} 49. b7 {[%clk 0:00:25]}  Nxb7 {[%clk 0:00:18]} 50. Bxb7 {[%clk 0:00:26]}  Ke5 {[%clk 0:00:18]} 51. Kxh4 {[%clk 0:00:23]}  a4 {[%clk 0:00:14]} 52. Ba6 {[%clk 0:00:21]}  a3 {[%clk 0:00:12]} 53. Bc4 {[%clk 0:00:21]}  f6 {[%clk 0:00:11]} 54. Kg3 {[%clk 0:00:16]}  Ke4 {[%clk 0:00:10]} 55. Kf2 {[%clk 0:00:17]}  g5 {[%clk 0:00:09]} 56. Bf7 {[%clk 0:00:16]}  f5 {[%clk 0:00:07]} 57. Bg8 {[%clk 0:00:15]}  f4 {[%clk 0:00:05]} 58. exf4 {[%clk 0:00:15]}  Kxf4 {[%clk 0:00:05]} 59. Bf7 {[%clk 0:00:15]}  Ke5 {[%clk 0:00:06]} 60. Kg3 {[%clk 0:00:15]}  Kd4 {[%clk 0:00:06]} 61. Kg4 {[%clk 0:00:15]}  Kc3 {[%clk 0:00:06]} 62. Kxg5 {[%clk 0:00:16]}  Kb2 {[%clk 0:00:07]} 63. Kf4 {[%clk 0:00:16]}  a2 {[%clk 0:00:08]} 64. Bxa2 {[%clk 0:00:16]} 1/2-1/2


[Site "https://www.chess.com"]

[Event "Titled Tuesday Blitz April 11 Early 2023"]
[White "Bacrot, Etienne"]
[Black "egorchess95"]
[WhiteFideId "605506"]
[WhiteElo "2663"]
[BlackElo "2544"]
[Result "1-0"]
[Round "10"]
[TimeControl "180+2"]
[Date "2023.04.11"]
[WhiteClock "0:00:12"]
[BlackClock "0:00:01"]

1. d4 {[%clk 0:03:00]}  d5 {[%clk 0:02:59]} 2. Nf3 {[%clk 0:03:00]}  Nf6 {[%clk 0:02:59]} 3. c4 {[%clk 0:03:01]}  e6 {[%clk 0:02:59]} 4. h3 {[%clk 0:03:01]}  a6 {[%clk 0:02:54]} 5. c5 {[%clk 0:02:54]}  b6 {[%clk 0:02:48]} 6. cxb6 {[%clk 0:02:54]}  cxb6 {[%clk 0:02:49]} 7. Bf4 {[%clk 0:02:53]}  Bd6 {[%clk 0:02:49]} 8. e3 {[%clk 0:02:52]}  O-O {[%clk 0:02:49]} 9. Nc3 {[%clk 0:02:51]}  a5 {[%clk 0:02:48]} 10. Bb5 {[%clk 0:02:45]}  Ba6 {[%clk 0:02:47]} 11. O-O {[%clk 0:02:44]}  Ne4 {[%clk 0:02:31]} 12. Bxd6 {[%clk 0:02:10]}  Nxd6 {[%clk 0:02:30]} 13. Bd3 {[%clk 0:02:07]}  Bxd3 {[%clk 0:02:29]} 14. Qxd3 {[%clk 0:02:07]}  Nc6 {[%clk 0:02:30]} 15. Rfc1 {[%clk 0:02:00]}  Rc8 {[%clk 0:02:29]} 16. a3 {[%clk 0:01:58]}  f5 {[%clk 0:02:12]} 17. Rc2 {[%clk 0:01:41]}  Ne4 {[%clk 0:02:11]} 18. Ne2 {[%clk 0:01:39]}  Qd6 {[%clk 0:01:53]} 19. Rac1 {[%clk 0:01:38]}  Ne7 {[%clk 0:01:53]} 20. Ne5 {[%clk 0:01:34]}  g5 {[%clk 0:01:31]} 21. Qb5 {[%clk 0:01:24]}  f4 {[%clk 0:01:12]} 22. exf4 {[%clk 0:01:23]}  Rxc2 {[%clk 0:01:10]} 23. Rxc2 {[%clk 0:01:23]}  gxf4 {[%clk 0:01:11]} 24. Qd7 {[%clk 0:01:00]}  Nf5 {[%clk 0:01:11]} 25. Rc6 {[%clk 0:00:47]}  Qxd7 {[%clk 0:01:02]} 26. Nxd7 {[%clk 0:00:47]}  Rd8 {[%clk 0:01:03]} 27. Ne5 {[%clk 0:00:44]}  Rd6 {[%clk 0:00:58]} 28. Rc8+ {[%clk 0:00:43]}  Kg7 {[%clk 0:00:58]} 29. Nxf4 {[%clk 0:00:29]}  Nxd4 {[%clk 0:00:58]} 30. Nh5+ {[%clk 0:00:29]}  Kh6 {[%clk 0:00:53]} 31. g4 {[%clk 0:00:29]}  Ng5 {[%clk 0:00:43]} 32. Kg2 {[%clk 0:00:26]}  Nf5 {[%clk 0:00:15]} 33. f4 {[%clk 0:00:20]}  Ne3+ {[%clk 0:00:03]} 34. Kf2 {[%clk 0:00:19]}  Nd1+ {[%clk 0:00:04]} 35. Ke2 {[%clk 0:00:16]}  Nxb2 {[%clk 0:00:04]} 36. Rg8 {[%clk 0:00:12]}  Ne4 {[%clk 0:00:01]} 37. Nf7# {[%clk 0:00:12]} 1-0


[Site "https://www.chess.com"]

[Event "Titled Tuesday Blitz April 11 Early 2023"]
[White "Francisco Guecamburu, Candela Be"]
[Black "Salinas Herrera, Pablo"]
[WhiteFideId "160911"]
[BlackFideId "3407128"]
[WhiteElo "2326"]
[BlackElo "2546"]
[Result "1-0"]
[Round "10"]
[TimeControl "180+2"]
[Date "2023.04.11"]
[WhiteClock "0:00:03"]
[BlackClock "0:00:20"]

1. e4 {[%clk 0:02:59]}  c5 {[%clk 0:03:00]} 2. Nf3 {[%clk 0:02:59]}  e6 {[%clk 0:03:00]} 3. d4 {[%clk 0:02:59]}  cxd4 {[%clk 0:03:01]} 4. Nxd4 {[%clk 0:03:00]}  a6 {[%clk 0:03:01]} 5. Bd3 {[%clk 0:02:59]}  Bc5 {[%clk 0:03:01]} 6. Nb3 {[%clk 0:02:59]}  Ba7 {[%clk 0:03:01]} 7. O-O {[%clk 0:02:38]}  Nc6 {[%clk 0:03:01]} 8. Qe2 {[%clk 0:02:37]}  d6 {[%clk 0:02:58]} 9. Be3 {[%clk 0:02:37]}  Nf6 {[%clk 0:02:59]} 10. Bxa7 {[%clk 0:02:36]}  Rxa7 {[%clk 0:02:59]} 11. c4 {[%clk 0:02:34]}  e5 {[%clk 0:02:58]} 12. Nc3 {[%clk 0:02:33]}  O-O {[%clk 0:02:56]} 13. Nd5 {[%clk 0:02:28]}  Be6 {[%clk 0:02:54]} 14. Rac1 {[%clk 0:02:18]}  b6 {[%clk 0:02:51]} 15. Rfd1 {[%clk 0:02:13]}  a5 {[%clk 0:02:51]} 16. h3 {[%clk 0:01:53]}  Nd7 {[%clk 0:02:51]} 17. a4 {[%clk 0:01:44]}  Nc5 {[%clk 0:02:48]} 18. Nxc5 {[%clk 0:01:39]}  bxc5 {[%clk 0:02:49]} 19. Nc3 {[%clk 0:01:38]}  Nd4 {[%clk 0:02:46]} 20. Qe3 {[%clk 0:01:36]}  Rb7 {[%clk 0:02:40]} 21. Nb5 {[%clk 0:01:33]}  Qe7 {[%clk 0:02:40]} 22. Bb1 {[%clk 0:01:27]}  g6 {[%clk 0:02:39]} 23. f4 {[%clk 0:01:25]}  f6 {[%clk 0:02:34]} 24. Rf1 {[%clk 0:01:19]}  Rbb8 {[%clk 0:02:30]} 25. Rf2 {[%clk 0:01:07]}  Bd7 {[%clk 0:02:29]} 26. Qc3 {[%clk 0:00:51]}  Ra8 {[%clk 0:02:28]} 27. Rcf1 {[%clk 0:00:49]}  Bc6 {[%clk 0:02:26]} 28. fxe5 {[%clk 0:00:46]}  dxe5 {[%clk 0:02:20]} 29. Qg3 {[%clk 0:00:43]}  Kg7 {[%clk 0:02:17]} 30. Qh4 {[%clk 0:00:38]}  Bxb5 {[%clk 0:02:07]} 31. cxb5 {[%clk 0:00:38]}  c4 {[%clk 0:02:04]} 32. Qg3 {[%clk 0:00:31]}  Rac8 {[%clk 0:01:55]} 33. Kh1 {[%clk 0:00:30]}  Qd6 {[%clk 0:01:49]} 34. Bc2 {[%clk 0:00:28]}  Rf7 {[%clk 0:01:43]} 35. Bd1 {[%clk 0:00:28]}  Rfc7 {[%clk 0:01:42]} 36. Rxf6 {[%clk 0:00:26]}  Qxf6 {[%clk 0:01:39]} 37. Rxf6 {[%clk 0:00:27]}  Kxf6 {[%clk 0:01:40]} 38. Qh4+ {[%clk 0:00:23]}  Kg7 {[%clk 0:01:39]} 39. Qg5 {[%clk 0:00:22]}  Re8 {[%clk 0:01:39]} 40. Qd2 {[%clk 0:00:22]}  Ra8 {[%clk 0:01:33]} 41. Qg5 {[%clk 0:00:21]}  Re8 {[%clk 0:01:31]} 42. Qd2 {[%clk 0:00:17]}  Rf7 {[%clk 0:01:31]} 43. Bf3 {[%clk 0:00:10]}  h5 {[%clk 0:01:17]} 44. Qxa5 {[%clk 0:00:09]}  Nxf3 {[%clk 0:01:17]} 45. gxf3 {[%clk 0:00:09]}  Rxf3 {[%clk 0:01:18]} 46. Qc7+ {[%clk 0:00:09]}  Rf7 {[%clk 0:01:17]} 47. Qxc4 {[%clk 0:00:09]}  Rd8 {[%clk 0:01:17]} 48. Qc2 {[%clk 0:00:07]}  Rdf8 {[%clk 0:01:03]} 49. Kg2 {[%clk 0:00:06]}  Kh6 {[%clk 0:01:00]} 50. b6 {[%clk 0:00:07]}  h4 {[%clk 0:00:56]} 51. a5 {[%clk 0:00:06]}  Rf3 {[%clk 0:00:49]} 52. Qd2+ {[%clk 0:00:02]}  g5 {[%clk 0:00:49]} 53. Qe2 {[%clk 0:00:03]}  Rg3+ {[%clk 0:00:49]} 54. Kh2 {[%clk 0:00:03]}  Rff3 {[%clk 0:00:47]} 55. Qxf3 {[%clk 0:00:03]}  Rxf3 {[%clk 0:00:48]} 56. b7 {[%clk 0:00:04]}  Rb3 {[%clk 0:00:48]} 57. a6 {[%clk 0:00:04]}  g4 {[%clk 0:00:44]} 58. hxg4 {[%clk 0:00:04]}  Kg5 {[%clk 0:00:45]} 59. a7 {[%clk 0:00:05]}  Rxb2+ {[%clk 0:00:44]} 60. Kg1 {[%clk 0:00:05]}  Rb1+ {[%clk 0:00:45]} 61. Kf2 {[%clk 0:00:05]}  Rb2+ {[%clk 0:00:45]} 62. Ke3 {[%clk 0:00:04]}  Rb3+ {[%clk 0:00:45]} 63. Kd2 {[%clk 0:00:05]}  Rxb7 {[%clk 0:00:45]} 64. a8=Q {[%clk 0:00:04]}  Rg7 {[%clk 0:00:44]} 65. Qd8+ {[%clk 0:00:03]}  Kxg4 {[%clk 0:00:44]} 66. Qf6 {[%clk 0:00:04]}  Rg5 {[%clk 0:00:44]} 67. Ke3 {[%clk 0:00:04]}  h3 {[%clk 0:00:44]} 68. Qf3+ {[%clk 0:00:04]}  Kh4 {[%clk 0:00:45]} 69. Qf2+ {[%clk 0:00:03]}  Rg3+ {[%clk 0:00:44]} 70. Ke2 {[%clk 0:00:03]}  Kg4 {[%clk 0:00:42]} 71. Qf5+ {[%clk 0:00:04]}  Kh4 {[%clk 0:00:43]} 72. Qxe5 {[%clk 0:00:04]}  h2 {[%clk 0:00:26]} 73. Qh8+ {[%clk 0:00:03]}  Kg4 {[%clk 0:00:27]} 74. Qxh2 {[%clk 0:00:04]}  Rb3 {[%clk 0:00:24]} 75. Qh8 {[%clk 0:00:03]}  Kf4 {[%clk 0:00:21]} 76. Qf8+ {[%clk 0:00:03]}  Ke5 {[%clk 0:00:20]} 77. Qe7+ {[%clk 0:00:03]}  Kf4 {[%clk 0:00:20]} 78. Qf7+ {[%clk 0:00:02]}  Ke5 {[%clk 0:00:20]} 79. Qxb3 {[%clk 0:00:03]} 1-0


[Site "https://www.chess.com"]

[Event "Titled Tuesday Blitz April 11 Early 2023"]
[White "Liyanage, Ranindu Dilshan"]
[Black "Dushyant Sharma"]
[WhiteFideId "9915834"]
[BlackFideId "25065130"]
[WhiteElo "2199"]
[BlackElo "2198"]
[Result "1-0"]
[Round "10"]
[TimeControl "180+2"]
[Date "2023.04.11"]
[WhiteClock "0:00:31"]
[BlackClock "0:00:07"]

1. d4 {[%clk 0:03:00]}  d5 {[%clk 0:02:54]} 2. Nc3 {[%clk 0:03:00]}  e6 {[%clk 0:02:55]} 3. Bf4 {[%clk 0:03:01]}  Bd6 {[%clk 0:02:53]} 4. e3 {[%clk 0:03:01]}  Nf6 {[%clk 0:02:08]} 5. Bd3 {[%clk 0:02:57]}  O-O {[%clk 0:02:04]} 6. Nf3 {[%clk 0:02:49]}  c5 {[%clk 0:02:01]} 7. dxc5 {[%clk 0:02:47]}  Bxc5 {[%clk 0:02:00]} 8. O-O {[%clk 0:02:44]}  Nc6 {[%clk 0:02:00]} 9. e4 {[%clk 0:02:45]}  dxe4 {[%clk 0:01:56]} 10. Nxe4 {[%clk 0:02:45]}  Nxe4 {[%clk 0:01:56]} 11. Bxe4 {[%clk 0:02:46]}  Qf6 {[%clk 0:01:53]} 12. Bg5 {[%clk 0:02:22]}  Qxb2 {[%clk 0:01:46]} 13. Rb1 {[%clk 0:02:10]}  Qxa2 {[%clk 0:01:35]} 14. Qd3 {[%clk 0:01:47]}  f5 {[%clk 0:01:17]} 15. Bxc6 {[%clk 0:01:46]}  bxc6 {[%clk 0:01:18]} 16. Qc3 {[%clk 0:01:47]}  Qa3 {[%clk 0:01:09]} 17. Rb3 {[%clk 0:01:46]}  Qa4 {[%clk 0:00:38]} 18. Qxc5 {[%clk 0:01:42]}  Ba6 {[%clk 0:00:37]} 19. Re1 {[%clk 0:01:39]}  Rae8 {[%clk 0:00:36]} 20. Ra3 {[%clk 0:01:34]}  Qc4 {[%clk 0:00:35]} 21. Qxc4 {[%clk 0:01:31]}  Bxc4 {[%clk 0:00:36]} 22. Rxa7 {[%clk 0:01:32]}  h6 {[%clk 0:00:36]} 23. Be3 {[%clk 0:01:26]}  Bd5 {[%clk 0:00:34]} 24. Ne5 {[%clk 0:01:25]}  Ra8 {[%clk 0:00:31]} 25. f3 {[%clk 0:01:10]}  Rxa7 {[%clk 0:00:29]} 26. Bxa7 {[%clk 0:01:11]}  Ra8 {[%clk 0:00:30]} 27. Bf2 {[%clk 0:01:10]}  Ra4 {[%clk 0:00:22]} 28. Rc1 {[%clk 0:01:07]}  Bc4 {[%clk 0:00:15]} 29. Nxc6 {[%clk 0:01:06]}  Kf7 {[%clk 0:00:14]} 30. Ne5+ {[%clk 0:01:05]}  Kf6 {[%clk 0:00:15]} 31. Bd4 {[%clk 0:01:04]}  Kg5 {[%clk 0:00:14]} 32. Ra1 {[%clk 0:00:51]}  Rxa1+ {[%clk 0:00:13]} 33. Bxa1 {[%clk 0:00:52]}  Ba6 {[%clk 0:00:13]} 34. c4 {[%clk 0:00:53]}  Kf4 {[%clk 0:00:14]} 35. c5 {[%clk 0:00:52]}  Ke3 {[%clk 0:00:14]} 36. c6 {[%clk 0:00:52]}  g5 {[%clk 0:00:14]} 37. c7 {[%clk 0:00:52]}  h5 {[%clk 0:00:11]} 38. Nc4+ {[%clk 0:00:49]}  Ke2 {[%clk 0:00:09]} 39. Nd6 {[%clk 0:00:50]}  g4 {[%clk 0:00:08]} 40. fxg4 {[%clk 0:00:49]}  hxg4 {[%clk 0:00:09]} 41. c8=Q {[%clk 0:00:49]}  Bxc8 {[%clk 0:00:10]} 42. Nxc8 {[%clk 0:00:50]}  f4 {[%clk 0:00:09]} 43. Bd4 {[%clk 0:00:37]}  f3 {[%clk 0:00:06]} 44. gxf3 {[%clk 0:00:38]}  gxf3 {[%clk 0:00:07]} 45. Nd6 {[%clk 0:00:35]}  e5 {[%clk 0:00:06]} 46. Bc5 {[%clk 0:00:34]}  Kd3 {[%clk 0:00:06]} 47. Kf2 {[%clk 0:00:32]}  e4 {[%clk 0:00:07]} 48. Be3 {[%clk 0:00:31]} 1-0


[Site "https://www.chess.com"]

[Event "Titled Tuesday Blitz April 11 Early 2023"]
[White "Korchmar, Vasiliy"]
[Black "Deng, Henry"]
[WhiteFideId "24131750"]
[BlackFideId "30965454"]
[WhiteElo "2370"]
[BlackElo "2526"]
[Result "0-1"]
[Round "10"]
[TimeControl "180+2"]
[Date "2023.04.11"]
[WhiteClock "0:00:01"]
[BlackClock "0:00:56"]

1. Nh3 {[%clk 0:02:54]}  d5 {[%clk 0:02:57]} 2. Na3 {[%clk 0:02:53]}  e5 {[%clk 0:02:52]} 3. c4 {[%clk 0:02:50]}  d4 {[%clk 0:02:47]} 4. d3 {[%clk 0:02:44]}  b6 {[%clk 0:02:36]} 5. g4 {[%clk 0:02:42]}  Bxg4 {[%clk 0:02:34]} 6. Rg1 {[%clk 0:02:39]}  Bd7 {[%clk 0:02:31]} 7. Ng5 {[%clk 0:02:36]}  Nf6 {[%clk 0:02:29]} 8. Bg2 {[%clk 0:02:33]}  Bc6 {[%clk 0:02:27]} 9. Bxc6+ {[%clk 0:02:26]}  Nxc6 {[%clk 0:02:27]} 10. Qa4 {[%clk 0:02:26]}  Qd7 {[%clk 0:02:24]} 11. f4 {[%clk 0:02:22]}  h6 {[%clk 0:02:20]} 12. Nf3 {[%clk 0:02:21]}  e4 {[%clk 0:02:20]} 13. dxe4 {[%clk 0:01:57]}  Nxe4 {[%clk 0:02:20]} 14. Nb5 {[%clk 0:01:58]}  Bb4+ {[%clk 0:02:14]} 15. Kf1 {[%clk 0:01:58]}  d3 {[%clk 0:02:06]} 16. Nxc7+ {[%clk 0:01:05]}  Qxc7 {[%clk 0:02:03]} 17. Ne5 {[%clk 0:01:06]}  dxe2+ {[%clk 0:01:53]} 18. Kxe2 {[%clk 0:01:05]}  Rc8 {[%clk 0:01:38]} 19. Rxg7 {[%clk 0:01:05]}  Nc5 {[%clk 0:01:34]} 20. Qxc6+ {[%clk 0:00:45]}  Qxc6 {[%clk 0:01:33]} 21. Nxc6 {[%clk 0:00:46]}  Rxc6 {[%clk 0:01:33]} 22. a3 {[%clk 0:00:45]}  Nb3 {[%clk 0:01:34]} 23. Rb1 {[%clk 0:00:38]}  Be7 {[%clk 0:01:29]} 24. Be3 {[%clk 0:00:32]}  Bf6 {[%clk 0:01:30]} 25. Rgg1 {[%clk 0:00:29]}  Kd8 {[%clk 0:01:26]} 26. Rbd1+ {[%clk 0:00:25]}  Kc7 {[%clk 0:01:24]} 27. Rd3 {[%clk 0:00:26]}  Nc5 {[%clk 0:01:24]} 28. Rd5 {[%clk 0:00:24]}  Re8 {[%clk 0:01:21]} 29. Kf3 {[%clk 0:00:21]}  Bxb2 {[%clk 0:01:17]} 30. Rgd1 {[%clk 0:00:20]}  Re7 {[%clk 0:01:14]} 31. f5 {[%clk 0:00:20]}  h5 {[%clk 0:01:11]} 32. Bf4+ {[%clk 0:00:20]}  Kb7 {[%clk 0:01:10]} 33. Rd8 {[%clk 0:00:19]}  Be5 {[%clk 0:01:07]} 34. Bg5 {[%clk 0:00:15]}  f6 {[%clk 0:01:07]} 35. Be3 {[%clk 0:00:15]}  Rcc7 {[%clk 0:01:02]} 36. Rh8 {[%clk 0:00:12]}  Rh7 {[%clk 0:01:00]} 37. Rf8 {[%clk 0:00:11]}  Rhg7 {[%clk 0:01:00]} 38. Rh8 {[%clk 0:00:07]}  Rh7 {[%clk 0:01:00]} 39. Rf8 {[%clk 0:00:07]}  h4 {[%clk 0:01:00]} 40. h3 {[%clk 0:00:05]}  Rcg7 {[%clk 0:01:00]} 41. Bf2 {[%clk 0:00:05]}  Rc7 {[%clk 0:00:59]} 42. Rdd8 {[%clk 0:00:05]}  Ka6 {[%clk 0:00:58]} 43. Ra8 {[%clk 0:00:03]}  Nb3 {[%clk 0:00:56]} 44. Rae8 {[%clk 0:00:01]}  Nd2+ {[%clk 0:00:55]} 45. Ke2 {[%clk 0:00:01]}  Nxc4 {[%clk 0:00:56]} 0-1


[Site "https://www.chess.com"]

[Event "Titled Tuesday Blitz April 11 Early 2023"]
[White "Petukhov, Dmitry"]
[Black "Danielyan, Vahe"]
[WhiteFideId "4142748"]
[BlackFideId "13304828"]
[WhiteElo "2311"]
[BlackElo "2423"]
[Result "1-0"]
[Round "10"]
[TimeControl "180+2"]
[Date "2023.04.11"]
[WhiteClock "0:00:42"]
[BlackClock "0:00:08"]

1. e4 {[%clk 0:02:59]}  Nf6 {[%clk 0:02:59]} 2. e5 {[%clk 0:02:58]}  Nd5 {[%clk 0:02:59]} 3. d4 {[%clk 0:02:59]}  d6 {[%clk 0:02:59]} 4. Nf3 {[%clk 0:02:58]}  g6 {[%clk 0:02:58]} 5. c4 {[%clk 0:02:54]}  Nb6 {[%clk 0:02:58]} 6. Nc3 {[%clk 0:02:53]}  Bg7 {[%clk 0:02:58]} 7. exd6 {[%clk 0:02:48]}  cxd6 {[%clk 0:02:58]} 8. Be3 {[%clk 0:02:45]}  O-O {[%clk 0:02:58]} 9. Be2 {[%clk 0:02:44]}  Bg4 {[%clk 0:02:50]} 10. b3 {[%clk 0:02:40]}  Nc6 {[%clk 0:02:49]} 11. Rc1 {[%clk 0:02:36]}  d5 {[%clk 0:02:46]} 12. c5 {[%clk 0:02:31]}  Nc8 {[%clk 0:02:46]} 13. O-O {[%clk 0:02:21]}  e6 {[%clk 0:02:44]} 14. h3 {[%clk 0:02:11]}  Bxf3 {[%clk 0:02:44]} 15. Bxf3 {[%clk 0:02:12]}  N8e7 {[%clk 0:02:45]} 16. Ne2 {[%clk 0:02:02]}  Nf5 {[%clk 0:02:43]} 17. Bg4 {[%clk 0:02:02]}  Re8 {[%clk 0:02:36]} 18. Bxf5 {[%clk 0:01:58]}  exf5 {[%clk 0:02:36]} 19. Qd2 {[%clk 0:01:59]}  Re4 {[%clk 0:02:33]} 20. Nc3 {[%clk 0:01:53]}  f4 {[%clk 0:02:28]} 21. Bxf4 {[%clk 0:01:47]}  Rxd4 {[%clk 0:02:27]} 22. Qe3 {[%clk 0:01:44]}  Qa5 {[%clk 0:02:09]} 23. Bd6 {[%clk 0:01:39]}  Nb4 {[%clk 0:01:40]} 24. a3 {[%clk 0:01:32]}  Nd3 {[%clk 0:01:30]} 25. b4 {[%clk 0:01:28]}  Qxa3 {[%clk 0:01:28]} 26. Nb5 {[%clk 0:01:26]}  Qxb4 {[%clk 0:01:26]} 27. Rb1 {[%clk 0:01:20]}  Qc4 {[%clk 0:01:17]} 28. Nxd4 {[%clk 0:01:16]}  Bxd4 {[%clk 0:01:16]} 29. Qf3 {[%clk 0:01:17]}  b5 {[%clk 0:01:09]} 30. Rbd1 {[%clk 0:01:07]}  Bxc5 {[%clk 0:00:55]} 31. Bxc5 {[%clk 0:01:02]}  Nxc5 {[%clk 0:00:55]} 32. Rc1 {[%clk 0:00:55]}  Qb4 {[%clk 0:00:39]} 33. Qxd5 {[%clk 0:00:51]}  Rc8 {[%clk 0:00:39]} 34. Rc2 {[%clk 0:00:50]}  Qa3 {[%clk 0:00:16]} 35. Rfc1 {[%clk 0:00:50]}  b4 {[%clk 0:00:15]} 36. Rxc5 {[%clk 0:00:46]}  Qxc1+ {[%clk 0:00:14]} 37. Rxc1 {[%clk 0:00:45]}  Rxc1+ {[%clk 0:00:15]} 38. Kh2 {[%clk 0:00:46]}  Rb1 {[%clk 0:00:09]} 39. Qa8+ {[%clk 0:00:43]}  Kg7 {[%clk 0:00:10]} 40. Qxa7 {[%clk 0:00:44]}  b3 {[%clk 0:00:09]} 41. Qd4+ {[%clk 0:00:43]}  Kg8 {[%clk 0:00:08]} 42. Qd3 {[%clk 0:00:42]}  Rb2 {[%clk 0:00:08]} 43. Qd8+ {[%clk 0:00:42]} 1-0


[Site "https://www.chess.com"]